bitfinex-derivatives/quotes_ETHF0:USTF0_20251116
["timestamp","ask_amount","ask_price","bid_price","bid_amount"]
[1763299927523,0.4237,3162.0,3161.6,3.21185845]
[1763299928816,0.6799,3161.7,3161.6,3.21185845]
[1763299930026,0.4237,3162.0,3161.6,3.21185845]
[1763299931321,0.6799,3161.7,3161.6,3.21185845]
[1763299931724,0.4237,3162.0,3161.6,3.21185845]
[1763299932620,0.4237,3162.0,3161.7,15.448]
[1763299932826,0.00474173,3162.1,3161.7,15.448]
[1763299933215,0.4237,3162.5,3161.7,15.448]
[1763299933419,0.4237,3162.5,3161.8,15.449]
[1763299933618,0.4237,3162.0,3161.8,15.449]
[1763299933928,0.4237,3162.5,3161.8,15.449]
[1763299934224,0.42844173,3162.5,3161.8,15.449]
[1763299936429,0.42844173,3162.5,3161.9,15.448]
[1763299937228,0.42844173,3162.5,3162.0,3.2078]
[1763299938224,0.00474173,3162.5,3162.0,3.2078]
[1763299938433,3.2078,3163.1,3162.4,4.0572126]
[1763299938632,3.2078,3163.1,3162.5,15.445]
[1763299938933,3.2078,3163.1,3162.5,56.245]
[1763299939134,3.2078,3163.1,3162.5,40.8]
[1763299939433,0.3969,3162.5,3162.4,18.6528]
[1763299941939,1.1103,3162.5,3162.4,3.2078]
[1763299942131,0.3969,3162.5,3162.4,3.2078]
[1763299943228,3.21254173,3163.1,3162.4,3.2078]
[1763299943534,0.3969,3162.5,3162.4,4.0572126]
[1763299943735,0.3969,3162.5,3162.4,19.5012126]
[1763299943938,0.3969,3162.5,3162.4,18.6508]
[1763299944231,0.3969,3162.5,3162.4,19.5002126]
[1763299944736,1.1103,3162.5,3162.4,4.0572126]
[1763299944938,1.1103,3162.5,3162.4,3.2078]
[1763299946136,1.1103,3162.5,3162.4,4.0572126]
[1763299946633,1.1103,3162.5,3162.3,15.444]
[1763299946634,1.1103,3162.5,3162.3,0.8494126]
[1763299947128,1.1103,3162.5,3162.4,0.8494126]
[1763299947332,0.7134,3162.4,3162.3,0.8494126]
[1763299947535,0.7134,3162.3,3162.2,16.2884126]
[1763299947925,0.7134,3162.3,3162.2,0.8494126]
[1763299948127,0.3969,3162.5,3162.0,3.2078]
[1763299948128,0.7134,3162.1,3162.0,3.2078]
[1763299948538,0.33361281,3162.1,3162.0,3.2078]
[1763299950431,0.3969,3162.5,3162.0,3.2078]
[1763299950938,0.6709,3162.1,3162.0,18.6468]
[1763299951231,0.3969,3162.5,3162.0,18.6468]
[1763299951438,0.3969,3162.5,3162.2,0.8494126]
[1763299952736,0.6709,3162.3,3162.2,0.8494126]
[1763299954038,0.3969,3162.5,3162.2,0.8494126]
[1763299954934,0.3969,3162.5,3162.4,0.8494126]
[1763299958245,0.3969,3162.5,3162.3,1.13523404]
[1763299958442,0.01717067,3162.5,3162.3,1.13523404]
[1763299961144,0.01717067,3162.5,3162.4,1.13523404]
[1763299962139,0.6709,3162.4,3162.2,1.69039049]
[1763299962447,0.6709,3162.4,3162.3,1.1364197]
[1763299964452,0.01717067,3162.5,3162.3,1.1364197]
[1763299966158,0.6709,3162.4,3162.3,1.1364197]
[1763299968051,0.01717067,3162.5,3162.3,1.1364197]
[1763299968348,0.4237,3163.0,3162.4,4.89819049]
[1763299968548,0.04398958,3163.0,3162.9,0.85231103]
[1763299968751,0.04398958,3163.0,3162.9,16.28231103]
[1763299972954,0.04398958,3163.0,3162.9,16.56641471]
[1763299973153,0.04398958,3163.0,3162.9,15.43]
[1763299974158,0.04398958,3163.0,3162.9,16.56582555]
[1763299974352,0.04398958,3163.0,3162.9,15.43]
[1763299975155,0.04398958,3163.0,3162.9,16.56558762]
[1763299976355,0.71488958,3163.0,3162.9,1.13558762]
[1763299976751,0.71488958,3163.0,3162.9,15.416]
[1763299977858,0.04398958,3163.0,3162.9,15.416]
[1763299978559,3.2078,3163.4,3162.9,15.416]
[1763299978768,0.3565,3163.0,3162.9,15.416]
[1763299980259,0.00311222,3163.3,3162.9,17.10639049]
[1763299980462,0.00311222,3163.3,3163.2,0.85172066]
[1763299980762,0.00311222,3163.3,3163.2,16.26472066]
[1763299981154,0.00311222,3163.3,3163.2,16.54862755]
[1763299981357,0.00311222,3163.3,3163.2,18.6208]
[1763299981551,0.00311222,3163.3,3163.2,20.31119049]
[1763299981756,0.00311222,3163.3,3163.2,18.6208]
[1763299984059,0.00311222,3163.3,3163.2,3.2078]
[1763299984263,0.63451222,3163.3,3163.2,15.7208]
[1763299984455,0.00311222,3163.3,3163.2,15.7208]
[1763299985265,0.00311222,3163.3,3163.2,16.85547637]
[1763299988575,3.2078,3163.8,3163.2,16.85547637]
[1763299988775,0.9879,3163.5,3163.4,0.85079598]
[1763299989172,0.9879,3163.5,3163.3,0.85079598]
[1763299989372,0.3565,3163.5,3163.4,0.85079598]
[1763299989562,0.35935382,3163.5,3163.4,0.85079598]
[1763299989768,0.00285382,3163.5,3163.3,1.69039049]
[1763299990369,0.4237,3164.0,3163.3,1.69039049]
[1763299990577,0.4237,3164.0,3163.6,0.85060134]
[1763299990875,0.4237,3164.0,3163.7,15.404]
[1763299991478,0.42761783,3164.0,3163.7,15.404]
[1763299991778,0.42761783,3164.0,3163.7,16.25460134]
[1763299992074,1.05901783,3164.0,3163.7,16.25460134]
[1763299992777,0.42761783,3164.0,3163.7,16.25460134]
[1763299993376,0.6314,3163.8,3163.7,0.85060134]
[1763299993576,0.6314,3163.8,3163.5,1.13413512]
[1763299993577,0.6314,3163.7,3163.6,0.85060134]
[1763299993775,3.63541783,3164.0,3163.4,1.13413512]
[1763299993776,0.9879,3163.5,3163.4,0.85060134]
[1763299993979,0.6314,3163.4,3163.3,0.85060134]
[1763299994174,0.3565,3163.5,3163.2,4.05840134]
[1763299994175,0.6314,3163.3,3163.2,4.05840134]
[1763299996466,0.3565,3163.5,3163.2,4.05840134]
[1763299996971,0.3565,3163.5,3163.3,0.85060134]
[1763299997170,0.5555,3163.4,3163.3,0.85060134]
[1763299997376,0.5555,3163.4,3163.3,16.24560134]
[1763299998474,0.5555,3163.4,3163.3,0.85060134]
[1763299998680,0.17585973,3163.4,3163.3,0.85060134]
[1763300000387,0.5555,3163.3,3163.2,3.2078]
[1763300000583,0.5555,3163.3,3163.1,0.85534307]
[1763300000783,0.5555,3163.2,3163.1,0.00474173]
[1763300001985,6.5555,3163.2,3163.1,0.00474173]
[1763300002190,9.7633,3163.2,3163.1,4.173e-05]
[1763300003680,3.7633,3163.2,3163.1,4.173e-05]
[1763300004587,9.7633,3163.2,3163.1,4.173e-05]
[1763300006892,3.7633,3163.2,3163.1,4.173e-05]
[1763300009987,3.7555,3163.2,3163.1,4.173e-05]
[1763300014382,0.3612,3163.5,3163.1,3.20784173]
[1763300014788,0.5477,3163.2,3163.1,3.20784173]
[1763300014992,0.5477,3163.2,3163.1,4.173e-05]
[1763300015585,0.3612,3163.5,3163.1,4.173e-05]
[1763300016385,0.3612,3163.5,3163.1,4.05844307]
[1763300019097,0.0047,3163.5,3163.2,0.85060134]
[1763300019294,3.63541783,3164.0,3163.4,1.13413512]
[1763300019493,4.18311783,3164.0,3163.6,0.85092263]
[1763300019692,0.97531783,3164.0,3163.6,0.85092263]
[1763300019899,0.97531783,3164.0,3163.7,0.85092263]
[1763300022090,0.5477,3163.8,3163.7,0.85092263]
[1763300023399,0.97531783,3164.0,3163.7,0.85092263]
[1763300023903,0.5477,3163.8,3163.7,0.85092263]
[1763300024403,0.5477,3163.8,3163.5,4.34193512]
[1763300025199,0.72451759,3163.7,3163.5,3.2078]
[1763300025400,0.72451759,3163.6,3163.5,3.2078]
[1763300025698,0.72451759,3163.9,3163.5,3.2078]
[1763300025893,0.72451759,3163.8,3163.5,3.2078]
[1763300026098,0.72451759,3163.7,3163.5,3.2078]
[1763300026409,0.72451759,3163.6,3163.5,3.2078]
[1763300026892,0.72451759,3163.9,3163.5,3.2078]
[1763300027192,0.42761783,3164.0,3163.5,3.2078]
[1763300027193,1.27221759,3163.8,3163.5,3.2078]
[1763300027391,1.27221759,3163.7,3163.5,3.2078]
[1763300027698,0.72451759,3163.6,3163.5,3.2078]
[1763300027893,1.27221759,3163.6,3163.5,3.2078]
[1763300030400,0.342,3163.5,3163.4,3.2078]
[1763300032301,0.72386951,3163.8,3163.4,3.2078]
[1763300032502,0.72386951,3163.7,3163.4,3.2078]
[1763300032699,0.72386951,3163.6,3163.4,3.2078]
[1763300032897,0.42761783,3164.0,3163.4,3.2078]
[1763300033102,0.72393429,3163.9,3163.4,3.2078]
[1763300033301,0.72393429,3163.8,3163.4,3.2078]
[1763300033608,0.72393429,3163.7,3163.4,3.2078]
[1763300033803,0.72393429,3163.6,3163.4,3.2078]
[1763300033999,0.97531783,3164.0,3163.4,3.2078]
[1763300034204,0.72395972,3163.9,3163.4,3.2078]
[1763300034405,0.72395972,3163.8,3163.4,3.2078]
[1763300034604,0.97531783,3164.0,3163.4,3.2078]
[1763300034903,0.72399739,3163.9,3163.4,3.2078]
[1763300038411,0.42761783,3164.0,3163.8,3.2078]
[1763300038597,0.42761783,3164.0,3163.8,18.5628]
[1763300039616,0.42761783,3164.0,3163.8,18.8191537]
[1763300041414,0.30001783,3164.0,3163.8,18.8191537]
[1763300041614,0.30001783,3164.0,3163.8,18.5628]
[1763300041816,0.30001783,3164.0,3163.8,18.81935154]
[1763300042617,0.30001783,3164.0,3163.8,18.5628]
[1763300043911,0.00391783,3164.0,3163.8,18.5628]
[1763300044112,0.30001783,3164.0,3163.8,18.5628]
[1763300044918,0.30001783,3164.0,3163.8,18.81844304]
[1763300045418,0.30001783,3164.0,3163.8,18.5628]
[1763300045608,1.25963032,3163.9,3163.8,3.2078]
[1763300046117,0.72483032,3163.9,3163.8,3.2078]
[1763300046416,1.25963032,3163.9,3163.8,3.2078]
[1763300048418,2.10565005,3163.9,3163.8,3.2078]
[1763300053020,1.25963032,3163.9,3163.8,3.2078]
[1763300053517,0.8309,3163.5,3163.4,3.2078]
[1763300053821,1.02093032,3163.5,3163.4,3.2078]
[1763300054024,0.72483032,3163.5,3163.4,3.2078]
[1763300054623,0.72483032,3163.5,3163.4,18.5608]
[1763300055022,0.72483032,3163.8,3163.4,18.5608]
[1763300055226,0.72483032,3163.7,3163.4,18.5608]
[1763300055418,0.2807,3163.5,3163.4,18.5608]
[1763300055617,1.00553032,3163.5,3163.4,18.5608]
[1763300055917,0.2807,3163.5,3163.4,3.2078]
[1763300056116,0.2807,3163.5,3163.4,18.5608]
[1763300056820,1.00553032,3163.5,3163.4,18.5608]
[1763300057423,0.2807,3163.5,3163.4,18.5608]
[1763300058420,1.00553032,3163.5,3163.4,18.5608]
[1763300058620,0.2807,3163.5,3163.4,18.5608]
[1763300060517,1.00553032,3163.5,3163.4,18.5608]
[1763300060821,0.2807,3163.5,3163.4,18.5608]
[1763300061615,2.23756469,3165.3,3164.5,1.23484776]
[1763300061917,2.25513591,3166.2,3165.2,3.2078]
[1763300062217,0.2807,3167.0,3166.1,3.2078]
[1763300062419,0.2807,3167.5,3166.9,3.2078]
[1763300062621,4.11282704,3167.4,3167.2,0.84826215]
[1763300062820,4.11282704,3167.4,3167.3,3.2078]
[1763300063118,0.28415791,3167.5,3167.3,4.05606215]
[1763300063313,0.28415791,3167.5,3167.4,15.391]
[1763300063514,0.74185389,3167.4,3167.3,4.05606215]
[1763300063821,0.74185389,3167.4,3167.3,19.44706215]
[1763300064020,0.74185389,3167.4,3167.3,4.05606215]
[1763300064326,0.74185389,3167.4,3167.3,14.3038]
[1763300065127,4.60782704,3167.4,3167.3,3.2078]
[1763300065317,4.60782704,3167.4,3167.3,18.5958]
[1763300065517,4.60782704,3167.4,3167.3,3.2078]
[1763300066226,0.495,3166.9,3166.8,3.2078]
[1763300066420,1.23685389,3166.9,3166.8,18.5958]
[1763300066723,1.23685389,3166.9,3166.8,3.2078]
[1763300066924,1.39689635,3166.9,3166.5,40.8]
[1763300067223,0.495,3166.6,3166.5,40.8]
[1763300067427,0.495,3166.6,3166.5,15.39578221]
[1763300067621,1.39689635,3166.6,3166.5,15.39578221]
[1763300068621,1.39689635,3166.6,3166.5,15.39378221]
[1763300069018,0.90189635,3166.6,3166.5,15.39378221]
[1763300070028,0.16004246,3166.6,3166.5,15.39378221]
[1763300070224,1.60749635,3166.6,3166.5,0.00378221]
[1763300070429,1.60749635,3166.6,3166.5,15.39178221]
[1763300070625,0.90189635,3166.6,3166.5,15.39178221]
[1763300070932,1.60749635,3166.6,3166.5,15.39178221]
[1763300071536,1.60749635,3166.6,3166.5,15.38878221]
[1763300073130,0.90189635,3166.6,3166.5,15.38878221]
[1763300073433,0.90189635,3166.6,3166.5,15.38578221]
[1763300073631,0.2807,3167.0,3166.5,15.38578221]
[1763300073837,0.90189635,3166.9,3166.5,15.38578221]
[1763300074136,0.7056,3166.6,3166.5,0.00378221]
[1763300074341,0.7056,3166.6,3166.5,15.38178221]
[1763300074534,1.60749635,3166.6,3166.5,15.38178221]
[1763300074836,1.44745389,3166.6,3166.5,15.38178221]
[1763300075340,0.74185389,3166.6,3166.5,15.38178221]
[1763300075738,0.16004246,3166.6,3166.5,15.38178221]
[1763300076141,0.2807,3167.0,3166.5,15.38178221]
[1763300076441,0.90189635,3166.9,3166.5,15.38178221]
[1763300078028,0.90189635,3166.9,3166.6,15.376]
[1763300078443,0.90189635,3166.9,3166.7,15.377]
[1763300080939,0.74185389,3166.8,3166.7,15.377]
[1763300081338,0.16004246,3166.8,3166.7,15.377]
[1763300081641,0.7056,3166.6,3166.5,0.00378221]
[1763300081840,0.7056,3166.6,3166.5,15.37378221]
[1763300082041,0.90189635,3166.6,3166.5,15.37378221]
[1763300082241,0.90189635,3166.6,3166.5,0.00378221]
[1763300082242,1.60749635,3166.6,3166.5,0.00378221]
[1763300085445,0.16004246,3166.6,3166.5,0.00378221]
[1763300085640,1.60749635,3166.6,3166.5,0.00378221]
[1763300086535,1.60749635,3166.6,3166.0,3.05628148]
[1763300086536,0.7056,3166.1,3166.0,3.05628148]
[1763300086942,1.44745389,3166.1,3166.0,3.05628148]
[1763300087646,1.44745389,3166.1,3166.0,3.05884292]
[1763300087847,0.00474173,3166.4,3166.0,3.05884292]
[1763300088044,0.7056,3166.1,3166.0,3.05884292]
[1763300088441,1.44745389,3166.1,3166.0,3.05884292]
[1763300089233,1.44745389,3166.1,3166.0,3.90710507]
[1763300090150,1.44745389,3166.1,3166.0,4.1899911]
[1763300091234,1.44745389,3166.1,3166.0,4.75928157]
[1763300091842,0.00474173,3166.4,3166.0,4.75928157]
[1763300092149,0.7056,3166.2,3166.1,1.70039059]
[1763300092551,1.44745389,3166.2,3166.1,1.70039059]
[1763300093941,0.7056,3166.1,3166.0,3.05884292]
[1763300094143,1.44745389,3166.1,3166.0,1.13618449]
[1763300095050,1.44745389,3166.1,3166.0,0.00256144]
[1763300096049,1.44745389,3166.1,3166.0,1.70295203]
[1763300096951,1.44745389,3166.1,3166.0,0.00256144]
[1763300100251,3.2078,3166.3,3166.0,0.00256144]
[1763300100452,1.39395389,3166.2,3166.1,1.13407625]
[1763300102860,0.6521,3166.2,3166.1,1.13407625]
[1763300103050,1.39395389,3166.2,3166.1,1.13407625]
[1763300103259,3.2078,3166.3,3165.7,4.173e-05]
[1763300103260,0.4023,3166.0,3165.7,4.173e-05]
[1763300103554,0.6521,3164.9,3164.8,5.4729217]
[1763300103748,0.27270867,3164.9,3164.8,3.2078]
[1763300104260,0.27679767,3164.9,3164.8,3.21041378]
[1763300111063,0.27679767,3164.9,3164.8,0.00261378]
[1763300112761,0.27679767,3164.9,3164.8,1.378e-05]
[1763300112956,0.6521,3164.6,3164.5,0.00474173]
[1763300113168,0.6521,3164.6,3164.5,4.173e-05]
[1763300113365,3.2078,3164.8,3163.6,3.2078]
[1763300113366,0.6521,3164.1,3163.6,3.2078]
[1763300113667,0.6521,3163.7,3163.6,3.2078]
[1763300113860,0.6521,3163.7,3163.6,3.21061281]
[1763300114168,0.6521,3163.7,3163.6,3.46749334]
[1763300114361,0.6521,3163.7,3163.6,3.21061281]
[1763300115862,0.6521,3163.4,3163.3,0.00474173]
[1763300116064,0.4227,3162.5,3162.4,8.5318]
[1763300116458,0.4227,3163.0,3162.4,8.5318]
[1763300116966,0.4227,3162.5,3162.4,8.53556378]
[1763300117267,0.4227,3162.5,3162.4,8.54030551]
[1763300117455,0.4227,3162.5,3162.4,3.21630551]
[1763300117661,1.1058,3162.5,3162.4,3.21630551]
[1763300119770,3.2078,3162.9,3162.4,3.21630551]
[1763300119970,0.00263035,3163.0,3162.4,3.21630551]
[1763300120174,0.42533035,3163.0,3162.4,3.21630551]
[1763300122074,0.42533035,3163.0,3162.5,40.8]
[1763300122971,0.42533035,3163.0,3162.8,3.2078]
[1763300124365,0.42533035,3163.0,3162.5,40.8]
[1763300128678,0.00263035,3163.0,3162.8,3.2078]
[1763300128877,0.00263035,3163.0,3162.9,15.389]
[1763300129374,0.00263035,3163.0,3162.5,40.8]
[1763300129677,0.4227,3163.5,3162.8,3.2078]
[1763300129872,0.4036,3163.0,3162.8,3.2078]
[1763300130078,1.0763,3163.0,3162.9,15.389]
[1763300130376,0.4036,3163.0,3162.9,15.389]
[1763300130576,1.0763,3163.0,3162.9,15.389]
[1763300130778,1.07977155,3163.0,3162.9,15.389]
[1763300130978,0.40707155,3163.0,3162.9,15.389]
[1763300131282,0.40707155,3163.0,3162.8,3.2078]
[1763300131780,0.40707155,3163.0,3162.9,15.387]
[1763300137386,0.40707155,3163.0,3162.8,4.33888252]
[1763300137586,1.07977155,3163.0,3162.9,15.379]
[1763300138288,0.40707155,3163.0,3162.9,15.379]
[1763300138477,0.40707155,3163.0,3162.9,16.51008252]
[1763300140188,0.40707155,3163.0,3162.9,15.379]
[1763300141690,0.6727,3162.9,3162.8,4.8967274]
[1763300141889,0.40707155,3163.0,3162.9,15.373]
[1763300142190,0.40707155,3163.0,3162.9,17.0619274]
[1763300143288,1.07977155,3163.0,3162.9,15.373]
[1763300144391,0.40707155,3163.0,3162.9,15.373]
[1763300145090,0.02742302,3163.0,3162.9,15.373]
[1763300145293,0.70012302,3163.0,3162.9,15.373]
[1763300145679,0.6727,3162.9,3162.8,3.2078]
[1763300145990,0.6727,3162.9,3162.8,18.5758]
[1763300146388,0.6727,3162.7,3162.6,2.2651217]
[1763300146693,0.02742302,3163.0,3162.4,0.00850551]
[1763300146694,0.4036,3162.5,3162.4,2.27362721]
[1763300146894,0.4036,3162.5,3162.4,17.64162721]
[1763300147584,0.4036,3162.5,3162.4,2.27362721]
[1763300147785,0.4036,3162.5,3162.4,17.63962721]
[1763300148296,0.4036,3162.5,3162.4,2.27362721]
[1763300148501,0.4036,3162.5,3162.4,17.63862721]
[1763300149193,0.4036,3162.5,3162.4,15.37350551]
[1763300150193,0.4036,3162.5,3162.4,17.64918286]
[1763300150992,1.0763,3162.5,3162.4,0.00850551]
[1763300151195,1.0763,3162.5,3162.4,15.37250551]
[1763300151988,0.4036,3162.5,3162.4,15.37250551]
[1763300153296,1.0763,3162.5,3162.4,15.37250551]
[1763300154391,0.4036,3162.5,3162.4,15.37250551]
[1763300155196,0.02388406,3162.5,3162.4,15.37250551]
[1763300156097,0.69658406,3162.5,3162.4,15.37250551]
[1763300156391,0.69658406,3162.5,3162.4,17.07880861]
[1763300157899,0.69658406,3162.5,3162.4,1.71380861]
[1763300158094,0.69658406,3162.5,3162.4,17.07880861]
[1763300158495,0.02388406,3162.5,3162.4,1.71380861]
[1763300158695,0.02388406,3162.5,3162.4,17.07880861]
[1763300160198,0.65998406,3162.5,3162.4,17.07880861]
[1763300160498,0.65998406,3162.5,3162.4,0.00850551]
[1763300160703,0.65998406,3162.5,3162.4,12.35050551]
[1763300160907,0.65998406,3162.5,3162.4,0.00850551]
[1763300161200,0.02742302,3163.0,3162.4,1.71380861]
[1763300161502,0.02742302,3163.0,3162.8,1.13649068]
[1763300161693,0.02742302,3163.0,3162.9,15.365]
[1763300163603,0.66352302,3163.0,3162.9,15.365]
[1763300164101,0.6361,3162.9,3162.8,1.13649068]
[1763300164300,0.6361,3162.9,3162.8,16.50149068]
[1763300164516,0.6361,3162.9,3162.8,1.13649068]
[1763300164893,0.6361,3162.9,3162.8,16.50149068]
[1763300165195,0.6361,3162.8,3162.7,1.13649068]
[1763300165807,0.02742302,3163.0,3162.6,1.13649068]
[1763300165808,0.6361,3162.7,3162.6,1.13649068]
[1763300166097,0.6361,3162.7,3162.5,1.7053031]
[1763300166298,0.6361,3162.6,3162.5,1.7053031]
[1763300167903,0.6361,3162.6,3162.4,15.37350551]
[1763300167904,1.0283,3162.5,3162.4,1.71380861]
[1763300168198,1.0283,3162.5,3162.4,16.51051123]
[1763300169508,1.0283,3162.5,3162.4,15.37350551]
[1763300171508,1.0283,3162.5,3162.4,0.00850551]
[1763300172507,1.0283,3162.5,3162.4,0.86115736]
[1763300173099,0.3922,3162.5,3162.4,0.86115736]
[1763300173295,1.0283,3162.5,3162.4,0.00850551]
[1763300175106,0.64856004,3162.5,3162.4,0.00850551]
[1763300176812,0.01246004,3162.5,3162.4,0.00850551]
[1763300177108,0.01246004,3162.5,3162.4,1.14551123]
[1763300178315,3.86362302,3163.0,3162.4,1.71380861]
[1763300178502,0.6284,3162.9,3162.8,0.85279528]
[1763300179703,3.23522302,3163.0,3162.8,0.85279528]
[1763300179905,3.86362302,3163.0,3162.8,0.85279528]
[1763300182614,0.6284,3162.9,3162.8,0.85279528]
[1763300185204,0.24869862,3162.9,3162.8,0.85279528]
[1763300185913,0.6284,3162.8,3162.7,0.85279528]
[1763300186811,0.6284,3162.8,3162.4,0.00850551]
[1763300186812,0.6284,3162.7,3162.6,0.85279528]
[1763300187019,0.6284,3162.6,3162.5,0.85279528]
[1763300188219,0.9884,3162.5,3162.4,0.86130079]
[1763300189416,0.9884,3162.5,3162.4,0.00850551]
[1763300190815,0.5806,3162.1,3162.0,1.13706038]
[1763300191407,0.5806,3161.7,3161.6,1.13706038]
[1763300191614,0.918,3161.5,3161.4,1.13706038]
[1763300192112,0.5806,3161.4,3161.3,1.13706038]
[1763300192316,0.5806,3161.4,3161.3,0.00273424]
[1763300193220,3.7884,3161.4,3161.3,0.00273424]
[1763300194118,9.7884,3161.4,3161.3,3.424e-05]
[1763300194322,9.7884,3161.4,3161.0,0.00474173]
[1763300194323,0.5806,3161.1,3161.0,0.00474173]
[1763300202523,0.5806,3161.1,3161.0,0.00781669]
[1763300202829,0.5806,3161.1,3160.1,3.2078]
[1763300203031,0.3374,3160.5,3160.1,3.2078]
[1763300203431,0.3374,3160.5,3159.8,15.37]
[1763300203825,0.918,3160.5,3160.4,0.5731]
[1763300205128,0.92070964,3160.5,3160.4,0.00400705]
[1763300206231,0.92070964,3160.5,3160.4,0.57710705]
[1763300210133,0.92070964,3160.5,3160.4,0.00400705]
[1763300211131,0.5806,3160.2,3160.1,0.00316118]
[1763300211327,0.5806,3160.2,3159.7,3.2078]
[1763300211328,3.7884,3160.2,3158.7,1.13706038]
[1763300211527,4.1258,3159.5,3159.4,0.5731]
[1763300211728,4.1258,3159.5,3159.0,0.25641689]
[1763300211929,4.1258,3159.5,3158.8,40.8]
[1763300212827,4.1258,3159.5,3159.4,0.5731]
[1763300213128,4.13054173,3159.5,3159.4,0.5731]
[1763300213532,4.13054173,3159.5,3158.7,56.172]
[1763300214132,4.13054173,3159.5,3158.7,56.17483696]
[1763300214629,4.13054173,3159.5,3159.4,0.5731]
[1763300216135,4.13054173,3159.5,3158.7,56.17483696]
[1763300216336,4.13054173,3159.5,3158.7,0.25755302]
[1763300216535,0.3374,3158.5,3158.1,1.13706038]
[1763300216834,3.2078,3158.8,3158.1,0.24726432]
[1763300217035,3.2078,3158.8,3158.0,3.2078]
[1763300217235,0.3374,3158.5,3158.0,3.2078]
[1763300217435,0.5806,3158.1,3158.0,3.7809]
[1763300217735,0.3374,3158.5,3158.0,3.7809]
[1763300218136,3.7884,3158.8,3158.7,0.5731]
[1763300218333,3.2078,3158.8,3158.7,0.5731]
[1763300220136,3.21126362,3158.8,3158.7,0.57698556]
[1763300220332,3.75496362,3158.8,3158.7,0.57698556]
[1763300220738,3.21126362,3158.8,3158.7,0.57698556]
[1763300220926,0.00346362,3158.8,3158.7,0.57698556]
[1763300221640,0.00346362,3158.8,3158.7,6.57698556]
[1763300221942,3.2078,3159.2,3159.1,0.5734]
[1763300222138,3.2078,3159.2,3159.1,15.9494]
[1763300222541,0.00474173,3159.5,3159.4,0.5734]
[1763300224639,0.00736878,3159.5,3159.4,0.5734]
[1763300224841,3.2078,3160.3,3159.4,0.5734]
[1763300224842,3.2078,3160.3,3160.2,0.5734]
[1763300226347,0.3185,3161.0,3160.2,0.5734]
[1763300226348,0.8622,3161.0,3160.9,0.5734]
[1763300226544,3.7515,3161.2,3161.1,0.5734]
[1763300226739,3.7515,3161.2,3160.4,16.50820191]
[1763300227048,3.7515,3161.2,3160.5,3.2078]
[1763300227945,3.7515,3161.2,3160.4,15.376]
[1763300228143,0.5437,3160.4,3160.3,1.70560191]
[1763300228348,0.5437,3160.1,3159.9,0.00474939]
[1763300228548,0.5437,3160.1,3159.9,0.00860204]
[1763300228739,0.8622,3160.0,3159.9,15.95700204]
[1763300228937,0.8622,3160.0,3159.9,0.00860204]
[1763300232042,0.8622,3160.0,3159.4,1.13220191]
[1763300232043,0.5437,3159.5,3159.4,1.13220191]
[1763300232246,0.5437,3159.5,3157.6,5.55083798]
[1763300232247,0.5437,3159.0,3158.5,18.7488]
[1763300232448,3.7515,3159.0,3158.5,18.7488]
[1763300232650,3.7515,3159.0,3158.9,0.5734]
[1763300233445,3.7515,3159.0,3158.9,0.57661186]
[1763300234350,3.2078,3159.0,3158.9,0.57661186]
[1763300234547,0.00474939,3159.3,3159.2,0.5734]
[1763300234751,0.00474939,3159.3,3159.2,15.9474]
[1763300238150,0.00474939,3159.3,3159.2,0.5734]
[1763300238455,0.00474939,3159.3,3159.2,15.9484]
[1763300241650,0.5736,3159.1,3159.0,0.347]
[1763300241946,0.5736,3159.1,3159.0,15.722]
[1763300242351,0.5736,3159.1,3159.0,16.2994]
[1763300243342,0.5736,3159.1,3159.0,15.722]
[1763300244156,0.5736,3159.1,3159.0,0.347]
[1763300244457,0.5736,3159.1,3159.0,0.9244]
[1763300244847,0.57834939,3159.3,3159.2,0.5774]
[1763300245558,0.5736,3159.1,3159.0,0.347]
[1763300245866,0.5736,3159.1,3159.0,0.9244]
[1763300246656,0.5736,3159.0,3158.9,0.00321186]
[1763300246856,0.8921,3159.0,3158.9,0.00321186]
[1763300247252,0.5736,3159.0,3158.9,0.00321186]
[1763300247559,3.7814,3159.1,3159.0,0.9244]
[1763300247763,0.5736,3159.0,3158.9,0.00321186]
[1763300248160,3.2078,3159.1,3159.0,0.9244]
[1763300249363,0.5392,3159.0,3158.9,0.00321186]
[1763300253061,3.2078,3159.1,3158.9,0.53081186]
[1763300253267,3.2078,3159.1,3159.0,0.8498]
[1763300253463,3.747,3159.1,3159.0,0.8498]
[1763300254960,3.2078,3159.1,3159.0,0.8498]
[1763300256060,0.5392,3159.0,3158.9,0.00321186]
[1763300258758,0.5392,3159.0,3158.9,0.53081186]
[1763300258958,3.2078,3159.1,3159.0,0.8498]
[1763300260869,3.747,3159.1,3159.0,0.8498]
[1763300261264,3.2078,3159.1,3159.0,0.8498]
[1763300261963,0.5392,3159.0,3158.9,0.00321186]
[1763300262269,2.82765255,3159.1,3159.0,0.8498]
[1763300262668,0.5392,3159.0,3158.9,0.00321186]
[1763300266279,0.5392,3159.0,3158.9,0.53081186]
[1763300266574,0.5392,3159.0,3158.9,0.00321186]
[1763300266775,0.5392,3159.0,3158.9,0.53081186]
[1763300266976,2.82765255,3159.1,3159.0,0.8498]
[1763300267176,3.36685255,3159.1,3159.0,0.8498]
[1763300267577,3.36685255,3159.1,3159.0,0.3222]
[1763300268075,0.5392,3159.0,3158.9,0.00321186]
[1763300268476,0.5392,3159.0,3158.9,0.53081186]
[1763300269181,0.5392,3159.0,3158.9,0.00321186]
[1763300269678,0.5392,3159.0,3158.9,1.38147984]
[1763300270078,2.82765255,3159.1,3159.0,0.8498]
[1763300270279,2.82765255,3159.1,3159.0,1.70046798]
[1763300272076,3.36685255,3159.1,3159.0,1.70046798]
[1763300272979,2.82765255,3159.1,3159.0,1.70046798]
[1763300273982,2.82765255,3159.1,3159.0,0.8498]
[1763300274383,2.82765255,3159.1,3159.0,1.98741237]
[1763300274583,3.36685255,3159.1,3159.0,1.98741237]
[1763300275382,2.82765255,3159.1,3159.0,1.98741237]
[1763300278576,3.36685255,3159.1,3159.0,1.98741237]
[1763300280676,3.36685255,3159.1,3159.0,0.8498]
[1763300281080,2.82765255,3159.1,3159.0,0.8498]
[1763300281280,2.82765255,3159.1,3159.0,1.98741237]
[1763300281683,3.33155255,3159.1,3159.0,1.98741237]